fUSD/lending_fUSD_20240801
["ID","MTS","AMOUNT","RATE_DAILY","PERIOD"]
[333818421,1722528642826,-155.0,0.0001246,2]
[333818423,1722528642835,-281.48530578,0.0001246,2]
[333818425,1722528642845,-379.95855132,0.0001246,2]
[333818427,1722528642854,-400.85725149,0.0001254,2]
[333818429,1722528642863,-400.85725149,0.0001254,2]
[333818431,1722528642873,-155.0,0.00012581,2]
[333818433,1722528642883,-155.0,0.00012581,2]
[333818435,1722528642893,-155.0,0.00012665,2]
[333818437,1722528642903,-308.97616233,0.00012665,2]
[333818439,1722528642911,-155.0,0.00012666,2]
[333818441,1722528642921,-387.79038477,0.00012675,2]
[333818443,1722528642931,-2727.16525437,0.00012681,2]
[333818445,1722528642941,-528.40182091,0.0001269,2]
[333818447,1722528642952,-1000.0,0.000127,2]
[333818449,1722528642962,-419.90121071,0.0001271,2]
[333818451,1722528642971,-3975.93139247,0.00012749,2]
[333818453,1722528642981,-35664.41564211,0.000128,2]
[333818455,1722528642991,-185.30202149,0.00012826,2]
[333818457,1722528643000,-400.0,0.00012826,2]
[333818459,1722528643010,-200.0,0.00012896,2]
[333818461,1722528643019,-5842.40482484,0.000129,2]
[333818463,1722528643035,-7579.64117648,0.000129,2]
[333818465,1722528643046,-3158.60889169,0.000129,2]
[333818467,1722528643057,-1668.02297108,0.000129,2]
[333818470,1722528643069,-579.35,0.000129,2]
[333818472,1722528643088,-10561.1464,0.000129,2]
[333818475,1722528643100,-298.975,0.000129,2]
[333818477,1722528643110,-631.9,0.000129,2]
[333818479,1722528643122,-13855.40566164,0.000129,2]
[333818481,1722528643134,-7164.35167377,0.000129,2]
[333818483,1722528643148,-1012.41,0.000129,2]
[333818486,1722528643159,-1309.03768316,0.000129,2]
[333818721,1722528645548,958.38701646,0.00027,120]
[333818745,1722528645679,-155.0,0.00012397,2]
[333818750,1722528645689,-155.0,0.0001246,2]
[333818752,1722528645698,-198.5,0.000129,2]
[333818755,1722528645709,-2800.21661438,0.000129,2]
[333818761,1722528645736,-9155.9375386,0.000129,2]
[333818764,1722528645761,-644.05,0.000129,2]
[333818768,1722528645791,-10822.45126436,0.000129,2]
[333818771,1722528645801,-353.7761,0.000129,2]
[333818773,1722528645811,-6.76436766,0.000129,2]
[333818774,1722528645823,-2152.30853234,0.000129,2]
[333818775,1722528645832,-167.10713689,0.000129,2]
[333818776,1722528645842,-175.32345233,0.000129,2]
[333818777,1722528645851,-176.76776976,0.000129,2]
[333818778,1722528645861,-320.55000001,0.000129,2]
[333818779,1722528645870,-200.0,0.00012973,2]
[333818780,1722528645880,-200.0,0.00012973,2]
[333818781,1722528645889,-200.0,0.00012973,2]
[333818783,1722528645899,-510.4934234,0.00012993,2]
[333818785,1722528645909,-1664.71730271,0.00012993,2]
[333818787,1722528645921,-1246.58900404,0.00012993,2]
[333818789,1722528645932,-332.78,0.00012993,2]
[333818791,1722528645943,-1325.98466,0.00012993,2]
[333818794,1722528645954,-263.53930281,0.00012993,2]
[333818796,1722528645966,-24535.10838054,0.00012993,2]
[333818798,1722528645976,-3407.0608485,0.00012993,2]
[333818800,1722528645986,-189.38497884,0.00012999,2]
[333818802,1722528645995,-2000.0,0.00012999,2]
[333818804,1722528646009,-2000.0,0.00012999,2]
[333818806,1722528646019,-409.5246,0.00012999,2]
[333818808,1722528646028,-150.0,0.00012999,2]
[333818810,1722528646038,-850.0,0.00012999,2]
[333818812,1722528646047,-81124.05400416,0.00013,2]
[333818814,1722528646059,-252019.99999989,0.00013,2]
[333818816,1722528646071,-977.4904416,0.00013,2]
[333818819,1722528646082,-1348.24207892,0.00013,2]
[333818821,1722528646094,-1639.6728001,0.00013,2]
[333818823,1722528646105,-1092.4015991,0.00013,2]
[333818825,1722528646116,-1210.38249056,0.00013,2]
[333818827,1722528646128,-901.05891815,0.00013,2]
[333818829,1722528646143,-2609.99752265,0.00013,2]
[333818832,1722528646158,-2912.9101,0.00013,2]
[333818834,1722528646169,-12115.36860853,0.00013,2]
[333819632,1722528668431,2000.0,0.00027,120]
[333819664,1722528742974,500.0,0.00027,120]
[333819670,1722528779649,500.0,0.00027,120]
[333819673,1722528797420,500.0,0.00027,120]
[333819675,1722528799533,329.95539117,0.00027,120]
[333819676,1722528801020,500.0,0.0002626,120]
[333819735,1722529156947,506.80735228,9.61e-05,2]
[333819736,1722529156973,368.88264772,9.61e-05,2]
[333819738,1722529166756,137.92470456,9.61e-05,2]
[333819739,1722529166781,506.80735228,9.61e-05,2]
[333819740,1722529166805,506.80735228,9.61e-05,2]
[333819741,1722529166830,506.80735228,9.61e-05,2]
[333819742,1722529166859,506.80735228,9.61e-05,2]
[333819743,1722529166884,506.80735228,9.61e-05,2]
[333819744,1722529166908,506.80735228,9.61e-05,2]
[333819745,1722529166935,506.80735228,9.61e-05,2]
[333819746,1722529166960,506.80735228,9.61e-05,2]
[333819758,1722529262574,1494.0,0.00027,120]
[333819779,1722529429682,230.10920025,0.00027,120]
[333819833,1722529761039,500.0,0.00027,120]
[333819881,1722529771996,500.0,0.00027,120]
[333819897,1722529831711,-377.86782155,9.277e-05,2]
[333819898,1722529831723,-454.03217845,9.277e-05,2]
[333819899,1722529831733,-4927.02917024,9.51e-05,2]
[333819900,1722529831783,-2209.22872047,9.51e-05,2]
[333819901,1722529831793,-1328.35,9.51e-05,2]
[333819902,1722529831802,-300.0,9.609e-05,2]
[333819903,1722529831812,-150.0,9.609e-05,2]
[333819904,1722529831821,-5998.69220096,9.61e-05,2]
[333819905,1722529831830,-250.0,0.00010603,2]
[333819906,1722529831840,-2512.77542143,0.0001079,2]
[333819907,1722529831849,-78509.57470214,0.0001088,2]
[333819908,1722529831860,-365.89746288,0.0001088,2]
[333819909,1722529831885,-457.29170079,0.0001088,2]
[333819910,1722529831900,-368.9318612,0.0001088,2]
[333819911,1722529831913,-25308.77615998,0.0001088,2]
[333819912,1722529831924,-1001.3484,0.0001088,2]
[333819913,1722529831935,-1041.04,0.0001088,2]
[333819914,1722529831946,-498.6429475,0.0001088,2]
[333819915,1722529831957,-1026.39824093,0.0001088,2]
[333819916,1722529831969,-1013.80335546,0.0001088,2]
[333819947,1722529838805,-1051.02158597,0.0001088,2]
[333819949,1722529838817,-796.44791203,0.0001088,2]
[333819951,1722529838829,-1266.21517601,0.0001088,2]
[333819954,1722529838841,-408.66224937,0.0001088,2]
[333819957,1722529838852,-4018.91771306,0.0001088,2]
[333819960,1722529838864,-31090.0,0.0001088,2]
[333819962,1722529838875,-553.16,0.0001088,2]
[333819965,1722529838887,-539.00383144,0.0001088,2]
[333819968,1722529838898,-2358.582,0.0001088,2]
[333819970,1722529838910,-3093.56992219,0.0001088,2]
[333819973,1722529838922,-15524.9999999,0.0001088,2]
[333819976,1722529838933,-1964.73594823,0.0001088,2]
[333819978,1722529838943,-13614.0,0.0001089,2]
[333819980,1722529838953,-739.84773158,0.0001089,2]
[333819983,1722529838963,-9999.99,0.0001089,2]
[333819986,1722529838973,-787.53561164,0.00010899,2]
[333819989,1722529838983,-207.07396825,0.000109,2]
[333819992,1722529838995,-532.77376333,0.000109,2]
[333819993,1722529839006,-250.0,0.00010959,2]
[333819996,1722529839021,-6099.28350179,0.00010989,2]
[333819999,1722529839038,-71872.45807065,0.0001099,3]
[333820002,1722529839059,-265.049987,0.0001099,3]
[333820005,1722529839077,-581.71646192,0.0001099,3]
[333820007,1722529839093,-1698.02186945,0.0001099,3]
[333820119,1722529839766,-12688.9272,0.0001099,3]
[333820123,1722529839777,-338.0226125,0.0001099,3]
[333820141,1722529839878,-478.47184535,0.0001099,3]
[333820143,1722529839888,-1026.04080833,0.0001099,3]
[333820146,1722529839900,-28011.38950682,0.0001099,3]
[333820149,1722529839909,-150.99,0.0001099,2]
[333820151,1722529839918,-287.18799721,0.00010999,2]
[333820153,1722529839928,-500.0,0.00010999,2]
[333820154,1722529839937,-615.61025819,0.00010999,2]
[333820156,1722529839947,-68395.03231358,0.00011,2]
[333820158,1722529839960,-658.89701571,0.00011,2]
[333820257,1722529840775,-3380.44659336,0.00011,2]
[333820259,1722529840787,-6672.5377891,0.00011,2]
[333820272,1722529840904,-347.55568211,0.00011,2]
[333820275,1722529840916,-300.0495264,0.00011,2]
[333820277,1722529840927,-1619.20385,0.00011,2]
[333820467,1722529842755,-500.0,0.00011,2]
[333820470,1722529842766,-366.83741487,0.00011,2]
[333820476,1722529842820,-3642.79917391,0.00011,2]
[333820478,1722529842832,-3162.19953279,0.00011,2]
[333820480,1722529842843,-292.5,0.00011,2]
[333820482,1722529842854,-344.447979,0.00011,2]
[333820486,1722529842885,-3529.11975385,0.00011,2]
[333820489,1722529842896,-3397.76989014,0.00011,2]
[333820491,1722529842908,-1269.05719409,0.00011,2]
[333820493,1722529842919,-389301.15416961,0.00011,2]
[333820495,1722529842931,-2971.4261541,0.00011,2]
[333820497,1722529842942,-795.92013436,0.00011,2]
[333820501,1722529842964,-350.62,0.00011,2]
[333820503,1722529842976,-2448.6,0.00011,2]
[333820505,1722529842987,-4783.16,0.00011,2]
[333820507,1722529842998,-2498.31440764,0.00011,2]
[333820509,1722529843010,-36597.54571064,0.00011,2]
[333820511,1722529843021,-1150.377831,0.00011,2]
[333820513,1722529843032,-1031.497246,0.00011,2]
[333820517,1722529843056,-1795.66259684,0.00011,2]
[333820519,1722529843068,-76833.06199734,0.00011,2]
[333820521,1722529843079,-6020.00259753,0.00011,2]
[333820523,1722529843090,-1067.81353758,0.00011,2]
[333820525,1722529843101,-455.24917089,0.00011,2]
[333820528,1722529843112,-327.82219165,0.00011,2]
[333820530,1722529843123,-723.49542968,0.00011,2]
[333820541,1722529843227,-311.5,0.00011,2]
[333820544,1722529843240,-5513.79394826,0.00011,2]
[333820759,1722529845843,-3258.8,0.00011,2]
[333820761,1722529845855,-1795.36741921,0.00011,2]
[333820768,1722529845907,-581.02513369,0.00011,2]
[333820770,1722529845921,-360.08234564,0.00011,2]
[333820772,1722529845934,-866.3,0.00011,2]
[333820774,1722529845948,-1583.93695145,0.00011,2]
[333820777,1722529845967,-1891.29763656,0.00011,2]
[333820779,1722529845995,-1805.35167502,0.00011,2]
[333820781,1722529846007,-4030.75897368,0.00011,2]
[333820784,1722529846019,-914.18041574,0.00011,2]
[333820787,1722529846045,-573743.88120693,0.00011,2]
[333820789,1722529846056,-250.0,0.00011,2]
[333820791,1722529846066,-94091.56680812,0.00011,2]
[333820793,1722529846078,-264.37005527,0.00011,2]
[333820796,1722529846097,-389.71569304,0.00011,2]
[333820799,1722529846109,-555.0,0.00011,2]
[333820801,1722529846120,-5694.90227695,0.00011,2]
[333820803,1722529846131,-1284.07719514,0.00011,2]
[333820805,1722529846143,-968.49131176,0.00011,2]
[333820807,1722529846153,-5715.35720208,0.00011,2]
[333820809,1722529846164,-1131.90187909,0.00011,2]
[333820813,1722529846192,-3326.36049623,0.00011,2]
[333820815,1722529846204,-2136.19702433,0.00011,2]
[333820817,1722529846215,-280031.93234882,0.00011,2]
[333820819,1722529846229,-416.35263908,0.00011,2]
[333820821,1722529846245,-16155.607118,0.00011,2]
[333820824,1722529846256,-12513.06937776,0.00011,2]
[333820825,1722529846299,-904.64662748,0.00011,2]
[333822057,1722529868873,1200.0,0.00027,120]
[333822066,1722529922236,-608.16882274,9.51e-05,2]
[333822067,1722529922269,-608.16882274,9.51e-05,2]
[333822068,1722529922306,-608.16882274,9.51e-05,2]
[333822069,1722529922348,-608.16882274,9.51e-05,2]
[333822070,1722529922388,-608.16882274,9.51e-05,2]
[333822071,1722529922424,-608.16882274,9.51e-05,2]
[333822072,1722529922473,-608.16882274,9.51e-05,2]
[333822073,1722529922516,-608.16882274,9.51e-05,2]
[333822074,1722529922554,-608.16882274,9.51e-05,2]
[333822075,1722529922587,-608.16882274,9.51e-05,2]
[333822076,1722529922619,-210.1064726,9.51e-05,2]
[333822077,1722529922645,-398.06235014,0.000109,2]
[333822078,1722529922685,-25.58622284,0.000109,2]
[333822079,1722529922712,-300.0,0.00010999,2]
[333822080,1722529922737,-282.5825999,0.00011,2]
[333822081,1722529922767,-608.16882274,0.00011,2]
[333822082,1722529922797,-608.16882274,0.00011,2]
[333822083,1722529922831,-608.16882274,0.00011,2]
[333822084,1722529922861,-608.16882274,0.00011,2]
[333822085,1722529922895,-608.16882274,0.00011,2]
[333822086,1722529922980,-608.16882274,0.00011,2]
[333822087,1722529923028,-608.16882274,0.00011,2]
[333822088,1722529923067,-608.16882274,0.00011,2]
[333822089,1722529923105,-608.16882274,0.00011,2]
[333822090,1722529923137,-608.16882274,0.00011,2]
[333822091,1722529923175,-608.16882274,0.00011,2]
[333822092,1722529923232,-608.16882274,0.00011,2]
[333822093,1722529923710,-608.16882274,0.00011,2]
[333822094,1722529923758,-608.16882274,0.00011,2]
[333822095,1722529923793,-608.16882274,0.00011,2]
[333822096,1722529923828,-608.16882274,0.00011,2]
[333822097,1722529923866,-608.16882274,0.00011,2]
[333822114,1722530003978,256.060235,0.00025562,120]
[333822136,1722530141487,500.0,0.00027,120]
[333822166,1722530330144,500.0,0.00027,120]
[333822169,1722530343025,500.0,0.00027,120]
[333822172,1722530355731,500.0,0.00027,120]
[333822209,1722530870912,1000.0,0.00025,60]
[333822210,1722530874490,1000.0,0.00025,61]
[333822211,1722530876374,1000.0,0.00025,62]
[333822212,1722530879899,1000.0,0.00025,63]
[333822235,1722531011380,-831.08,9.153e-05,2]
[333822236,1722531011407,-129.82673993,0.00010158,2]
[333822237,1722531011450,-227.49326007,0.00010158,2]
[333822238,1722531011478,-185.37,0.00010181,2]
[333822239,1722531011503,-189.22,0.00010214,2]
[333822240,1722531011530,-358.82347986,0.00010515,2]
[333822241,1722531011566,-960.90673993,0.00010515,2]
[333822242,1722531011601,-960.90673993,0.00010515,2]
[333822243,1722531011637,-960.90673993,0.00010515,2]
[333822244,1722531011673,-176.59517425,0.00010515,2]
[333822266,1722531031898,-431.74035951,0.00010515,2]
[333822267,1722531031914,-4904.29076659,0.00010515,2]
[333822268,1722531031924,-195.82,0.00010578,2]
[333822269,1722531031935,-541.73,0.00010642,2]
[333822270,1722531031946,-178.34,0.0001076,2]
[333822271,1722531031958,-3000.0,0.0001089,2]
[333822272,1722531031967,-2212.0231,0.000109,2]
[333822273,1722531031978,-7659.06073074,0.000109,2]
[333822274,1722531031995,-529.24457597,0.000109,2]
[333822275,1722531032007,-376.37542403,0.000109,2]
[333822276,1722531032018,-3545.23594935,0.000109,2]
[333822277,1722531032033,-441.55013377,0.000109,2]
[333822278,1722531032124,-3279.94572837,0.000109,2]
[333822301,1722531037979,-1854.34095672,0.0001089,2]
[333822302,1722531037993,-9774.96205408,0.000109,2]
[333822305,1722531038409,-2398.12290369,0.000109,2]
[333822306,1722531038419,-167.10713689,0.000109,2]
[333822307,1722531038428,-169.07856241,0.000109,2]
[333822308,1722531038438,-277.12137702,0.000109,2]
[333822309,1722531038449,-431.66067342,0.000109,2]
[333822310,1722531038459,-184.84,0.00010918,2]
[333822311,1722531038468,-250.0,0.00010997,2]
[333822312,1722531038478,-9236.68269313,0.00010999,2]
[333822313,1722531038487,-11668.54511203,0.00011,2]
[333822314,1722531038502,-6903.18681663,0.00011,2]
[333822315,1722531038513,-283.83287331,0.00011,2]
[333822316,1722531038524,-1185.34288774,0.00011,2]
[333822317,1722531038535,-1214.80253227,0.00011,2]
[333822319,1722531038546,-858.74623956,0.00011,2]
[333822321,1722531038557,-31516.50000002,0.00011,2]
[333822399,1722531039876,-382.60523184,0.00011,2]
[333822406,1722531039935,-4568.12145839,0.00011,2]
[333822413,1722531040003,-137429.3312749,0.00011,2]
[333822415,1722531040014,-6311.41979288,0.00011,2]
[333822421,1722531040061,-879.53341354,0.00011,2]
[333822434,1722531040176,-96602.25241341,0.00011,2]
[333822436,1722531040188,-3142.91921805,0.00011,2]
[333822438,1722531040198,-960.01640894,0.00011,2]
[333822440,1722531040210,-756.77499305,0.00011,2]
[333822441,1722531040222,-696.58313597,0.00011,2]
[333822442,1722531040233,-324.425,0.00011,2]
[333822443,1722531040248,-1577.02275,0.00011,2]
[333822444,1722531040259,-758.055998,0.00011,2]
[333822445,1722531040270,-1056.7785687,0.00011,2]
[333822450,1722531040694,-1273.216,0.00011,2]
[333822641,1722531042892,-298.72,0.00010515,2]
[333822644,1722531042905,-662.94666097,0.00010515,2]
[333822646,1722531042920,-2166.64038698,0.00011,2]
[333822648,1722531042932,-4135.607814,0.00011,2]
[333822652,1722531042961,-1662.404714,0.00011,2]
[333822655,1722531042975,-15702.75000005,0.00011,2]
[333822657,1722531042988,-5607.0927,0.00011,2]
[333822660,1722531043006,-275.452,0.00011,2]
[333822662,1722531043018,-758.19771398,0.00011,2]
[333822664,1722531043030,-3131.00092838,0.00011,2]
[333822666,1722531043045,-857.70927254,0.00011,2]
[333822669,1722531043059,-361871.6202388,0.00011,2]
[333822671,1722531043072,-500.0,0.00011,2]
[333822674,1722531043083,-239297.10321505,0.00011,2]
[333822676,1722531043099,-57880.94422364,0.00011,2]
[333822678,1722531043109,-500.0,0.00011,2]
[333822681,1722531043120,-190.83,0.00011008,2]
[333822683,1722531043130,-487.09,0.00011008,2]
[333822685,1722531043140,-188.18,0.00011049,2]
[333822687,1722531043150,-1280.93,0.00011049,2]
[333822689,1722531043161,-26683.35,0.00011049,2]
[333822691,1722531043171,-250.0,0.00011088,2]
[333822693,1722531043184,-1000.0,0.00011105,2]
[333822695,1722531043193,-243.00643023,0.00011105,2]
[333822697,1722531043204,-155.0,0.00011105,2]
[333822699,1722531043213,-519.62430261,0.00011105,2]
[333822701,1722531043223,-155.0,0.00011105,2]
[333822702,1722531043233,-166.18713584,0.00011105,2]
[333822705,1722531043244,-155.0,0.00011105,2]
[333822707,1722531043255,-198.35719671,0.00011105,2]
[333822709,1722531043264,-155.0,0.00011105,2]
[333822711,1722531043275,-155.0,0.00011105,2]
[333822713,1722531043284,-2897.27305877,0.00011105,2]
[333822715,1722531043296,-4102.72694123,0.00011105,2]
[333822717,1722531043306,-10524.20000003,0.00011105,2]
[333822719,1722531043316,-5000.0,0.00011105,2]
[333822721,1722531043326,-1175.68290634,0.00011105,2]
[333822723,1722531043335,-226.87743079,0.00011105,2]
[333822725,1722531043345,-1049.57124552,0.00011105,2]
[333822727,1722531043354,-3117.7279925,0.00011105,2]
[333822729,1722531043364,-3400.91875942,0.00011105,2]
[333822731,1722531043374,-3079.05538157,0.00011105,2]
[333822733,1722531043384,-1404.6505661,0.00011105,2]
[333822735,1722531043394,-628.0054999,0.00011105,2]
[333822737,1722531043405,-5321.7841887,0.00011105,2]
[333822739,1722531043414,-454.12693481,0.00011105,2]
[333822741,1722531043424,-165.34169392,0.00011105,2]
[333822743,1722531043434,-357.09487431,0.00011105,2]
[333822745,1722531043444,-158.84273734,0.00011105,2]
[333822747,1722531043454,-359.03203292,0.00011105,2]
[333822749,1722531043464,-2143.78276528,0.0001116,2]
[333822751,1722531043474,-719.24573666,0.0001116,2]
[333822753,1722531043483,-2143.78276528,0.0001116,2]
[333822755,1722531043494,-155.0,0.00011161,2]
[333822757,1722531043504,-155.0,0.00011161,2]
[333822759,1722531043515,-649.20351135,0.00011161,2]
[333822761,1722531043525,-25298.4632004,0.00011186,2]
[333822763,1722531043535,-35692.14335282,0.00011186,2]
[333822765,1722531043545,-15467.9621784,0.00011186,2]
[333822767,1722531043555,-1926.73701932,0.00011186,2]
[333822769,1722531043565,-484.69898026,0.00011186,2]
[333822770,1722531043575,-3035.95,0.00011206,2]
[333822773,1722531043585,-484.69898026,0.00011206,2]
[333822775,1722531043595,-1164.49697883,0.00011206,2]
[333822778,1722531043617,-109.80102865,0.00011206,2]
[333822780,1722531043628,-188.18,0.00011244,2]
[333822782,1722531043637,-200.1101821,0.00011245,2]
[333822818,1722531044067,-299.8798179,0.00011245,2]
[333822819,1722531044079,-500.0,0.00011274,2]
[333822820,1722531044089,-176.0,0.00011309,2]
[333822821,1722531044098,-432.98659919,0.00011322,2]
[333822822,1722531044109,-679.26108025,0.00011322,2]
[333822823,1722531044119,-155.0,0.00011322,2]
[333822824,1722531044128,-155.0,0.00011322,2]
[333822825,1722531044138,-455.70902142,0.00011324,2]
[333822826,1722531044149,-5148.63900559,0.00011324,2]
[333822827,1722531044160,-1664.92859572,0.00011324,2]
[333822828,1722531044170,-1621.96390599,0.00011324,2]
[333822829,1722531044179,-1183.81771126,0.00011324,2]
[333822830,1722531044189,-708.78205043,0.00011344,2]
[333822831,1722531044198,-3593.88,0.00011353,2]
[333822832,1722531044208,-411.15326882,0.00011359,2]
[333822833,1722531044217,-831.08,0.00011417,2]
[333822834,1722531044227,-379.71141842,0.00011428,2]
[333822835,1722531044236,-203.20879356,0.00011525,2]
[333822836,1722531044249,-155.0,0.00011525,2]
[333822838,1722531044259,-500.0,0.00011548,2]
[333822840,1722531044268,-708.78205043,0.00011789,2]
[333822842,1722531044278,-1500.0,0.0001185,2]
[333822844,1722531044289,-185.37,0.00011877,2]
[333822846,1722531044299,-1073.58046777,0.00011896,2]
[333822848,1722531044308,-1137.94693277,0.00011959,2]
[333822850,1722531044318,-1296.95622263,0.00011959,2]
[333822851,1722531044328,-1137.94693277,0.00011959,2]
[333822852,1722531044337,-1250.69105748,0.00011959,2]
[333822853,1722531044349,-2725.24033499,0.00011959,2]
[333822854,1722531044360,-550.0,0.00012,2]
[333822856,1722531044369,-517.55274339,0.00012096,2]
[333822858,1722531044379,-256.90337093,0.00012189,2]
[333822860,1722531044390,-188.09662907,0.00012189,2]
[333822862,1722531044400,-150.0,0.00012189,2]
[333822864,1722531044409,-260.72,0.00012189,2]
[333822866,1722531044418,-708.78205043,0.00012233,2]
[333822868,1722531044428,-820.0,0.00012233,2]
[333822869,1722531044437,-3975.93139247,0.0001236,2]
[333822870,1722531044447,-600.14164396,0.0001236,2]
[333822871,1722531044457,-298.34472477,0.0001236,2]
[333822872,1722531044467,-600.14164396,0.0001236,2]
[333822873,1722531044476,-210.84776497,0.0001236,2]
[333822874,1722531044486,-1000.0,0.00012493,2]
[333822875,1722531044500,-381.28371567,0.00012567,2]
[333822876,1722531044509,-205.72998009,0.00012581,2]
[333822877,1722531044519,-1128.50405461,0.000126,2]
[333822983,1722531047320,-181.66385154,0.00010515,2]
[333822985,1722531047330,-152.09614846,0.00010515,2]
[333822988,1722531047342,-638.33613279,0.00010515,2]
[333822990,1722531047351,-687.01648966,0.00010515,2]
[333822992,1722531047363,-184.5395235,0.00010515,2]
[333822994,1722531047372,-270.76493749,0.00010515,2]
[333822996,1722531047381,-203.20879356,0.00011525,2]
[333822998,1722531047391,-93.49594539,0.000126,2]
[333823000,1722531047400,-273.99080006,0.00012613,2]
[333823002,1722531047412,-283.04250555,0.00012613,2]
[333823004,1722531047424,-165.64999101,0.00012613,2]
[333823006,1722531047433,-202.68830391,0.00012613,2]
[333823008,1722531047443,-476.4573429,0.00012665,2]
[333823010,1722531047452,-555.0,0.00012665,2]
[333823012,1722531047463,-155.03453405,0.00012665,2]
[333823014,1722531047472,-155.0,0.00012666,2]
[333823016,1722531047482,-155.0,0.00012666,2]
[333823018,1722531047492,-708.78205043,0.00012678,2]
[333823020,1722531047506,-365.36537875,0.00012681,2]
[333823022,1722531047516,-206.56189729,0.0001269,2]
[333823024,1722531047526,-224.04207368,0.0001269,2]
[333823026,1722531047536,-196.9278947,0.0001269,2]
[333823028,1722531047547,-652.98954069,0.0001269,2]
[333823030,1722531047557,-265.17493776,0.0001269,2]
[333823032,1722531047567,-164.23596765,0.00012696,2]
[333823034,1722531047576,-347.32373286,0.00012696,2]
[333823037,1722531047586,-164.23596765,0.00012696,2]
[333823039,1722531047595,-155.0,0.00012696,2]
[333823041,1722531047604,-155.0,0.00012696,2]
[333823042,1722531047614,-155.0,0.00012749,2]
[333823044,1722531047623,-404.61688343,0.00012749,2]
[333823046,1722531047634,-155.0,0.00012749,2]
[333823048,1722531047643,-439.64535601,0.00012749,2]
[333823050,1722531047652,-155.0,0.00012749,2]
[333823052,1722531047662,-155.0,0.00012749,2]
[333823054,1722531047671,-155.0,0.00012749,2]
[333823056,1722531047681,-4.81282685,0.00012749,2]
[333823058,1722531047692,-265.47535819,0.00012749,2]
[333823060,1722531047702,-185.30202149,0.00012818,2]
[333823062,1722531047711,-367.51291896,0.00012818,2]
[333823064,1722531047721,-159.44788772,0.00012818,2]
[333823066,1722531047730,-164.21268611,0.00012826,2]
[333823068,1722531047740,-218.69189255,0.00012826,2]
[333823070,1722531047752,-177.8180981,0.00012826,2]
[333823072,1722531047761,-14.49789455,0.00012826,2]
[333823074,1722531047773,-349.30632038,0.00012826,2]
[333823076,1722531047782,-363.80421493,0.00012855,2]
[333823078,1722531047791,-155.28318094,0.00012855,2]
[333823080,1722531047801,-155.0,0.00012855,2]
[333823082,1722531047811,-297.18571325,0.00012883,2]
[333823084,1722531047820,-200.0,0.00012896,2]
[333823086,1722531047829,-28.82057049,0.000129,2]
[333823088,1722531047841,-451.11572951,0.000129,2]
[333823090,1722531047850,-381.28371567,0.000129,2]
[333823092,1722531047859,-155.0,0.00012924,2]
[333823094,1722531047869,-155.0,0.00012924,2]
[333823096,1722531047879,-155.0,0.00012924,2]
[333823098,1722531047889,-155.0,0.00012928,2]
[333823100,1722531047898,-200.0,0.00012973,2]
[333823102,1722531047909,-200.0,0.00012973,2]
[333823104,1722531047921,-173.0,0.0001299,2]
[333823106,1722531047930,-13542.97503113,0.0001299,2]
[333823321,1722531121354,-609.29836187,0.00010011,2]
[333823322,1722531121406,-220.05163813,0.00010011,2]
[333823324,1722531166650,155.0,0.00010011,2]
[333823325,1722531166683,155.0,0.00010011,2]
[333823326,1722531166720,79.24672374,0.00010011,2]
[333823327,1722531166747,151.3566967,0.00010011,2]
[333823331,1722531181176,329.95539117,0.00027,120]
[333823333,1722531198694,329.95539117,0.00027,120]
[333823425,1722532192607,787.88,8.915e-05,2]
[333823428,1722532207985,410.35,0.00027,120]
[333823442,1722532232228,-181.62,0.00010552,2]
[333823443,1722532232238,-327.97,0.00010698,2]
[333823445,1722532232247,-250.0,0.00010807,2]
[333823446,1722532232257,-184.85,0.00010813,2]
[333823447,1722532232266,-300.0,0.00010899,2]
[333823448,1722532232276,-300.0,0.00010899,2]